[Event "*** SCC Grand Prix: Titled Tuesday Blitz"]
[Site "Chess.com"]
[Date "2020.07.14"]
[Round "2"]
[White "TokChess"]
[Black "diamonds13"]
[Result "0-1"]
[WhiteElo "2422"]
[BlackElo "2237"]
[TimeControl "180+1"]
[EndTime "10:16:49 PDT"]
[Termination "diamonds13 won by resignation"]

1. e4 {[%clk 0:03:00.9]} 1... c5 {[%clk 0:02:59.6]} 2. Nc3 {[%clk 0:02:59.9]}
2... Nc6 {[%clk 0:02:58.9]} 3. Bb5 {[%clk 0:02:58.8]} 3... Nd4 {[%clk
0:02:58.5]} 4. Nf3 {[%clk 0:02:58.4]} 4... Nxb5 {[%clk 0:02:57]} 5. Nxb5 {[%clk
0:02:58.5]} 5... a6 {[%clk 0:02:57.7]} 6. Nc3 {[%clk 0:02:58.6]} 6... b5 {[%clk
0:02:58.3]} 7. a4 {[%clk 0:02:57.9]} 7... b4 {[%clk 0:02:57.6]} 8. Ne2 {[%clk
0:02:58.1]} 8... d6 {[%clk 0:02:56.4]} 9. Ng3 {[%clk 0:02:57.8]} 9... Bb7 {[%clk
0:02:55.8]} 10. O-O {[%clk 0:02:57.8]} 10... a5 {[%clk 0:02:56]} 11. Re1 {[%clk
0:02:58.2]} 11... e5 {[%clk 0:02:55.9]} 12. d3 {[%clk 0:02:57.1]} 12... g6
{[%clk 0:02:56]} 13. Nd2 {[%clk 0:02:57.2]} 13... Bg7 {[%clk 0:02:55.2]} 14. Nc4
{[%clk 0:02:57.3]} 14... Ne7 {[%clk 0:02:55.1]} 15. b3 {[%clk 0:02:57.2]} 15...
O-O {[%clk 0:02:54.6]} 16. Bb2 {[%clk 0:02:53.9]} 16... f5 {[%clk 0:02:54.6]}
17. exf5 {[%clk 0:02:43.7]} 17... gxf5 {[%clk 0:02:54]} 18. f4 {[%clk 0:02:35]}
18... Ng6 {[%clk 0:02:47.3]} 19. fxe5 {[%clk 0:01:46.3]} 19... dxe5 {[%clk
0:02:46]} 20. Qd2 {[%clk 0:01:43.6]} 20... Qh4 {[%clk 0:02:38]} 21. Qf2 {[%clk
0:01:28.7]} 21... Rae8 {[%clk 0:02:21.2]} 22. Nd6 {[%clk 0:01:24.9]} 22... f4
{[%clk 0:02:12.8]} 23. Nxb7 {[%clk 0:01:22.6]} 23... fxg3 {[%clk 0:02:10.1]} 24.
Qxg3 {[%clk 0:01:23.3]} 24... Qe7 {[%clk 0:02:01.2]} 25. Nxa5 {[%clk 0:01:20]}
25... Kh8 {[%clk 0:01:57.8]} 26. Nc4 {[%clk 0:01:19.3]} 26... Rf5 {[%clk
0:01:49.5]} 27. a5 {[%clk 0:01:19.2]} 27... Ref8 {[%clk 0:01:48.6]} 28. a6
{[%clk 0:01:18.6]} 28... Qa7 {[%clk 0:01:45.8]} 29. Qe3 {[%clk 0:01:12]} 29...
Nf4 {[%clk 0:01:24]} 30. g3 {[%clk 0:01:00.7]} 30... Nh3+ {[%clk 0:01:22.1]} 31.
Kg2 {[%clk 0:00:53.1]} 31... Rf2+ {[%clk 0:01:17.1]} 32. Kxh3 {[%clk 0:00:41.9]}
32... Qd7+ {[%clk 0:01:16.1]} 33. g4 {[%clk 0:00:27.6]} 33... R8f3+ {[%clk
0:01:15.6]} 34. Qxf3 {[%clk 0:00:26.5]} 34... Rxf3+ {[%clk 0:01:15.4]} 35. Kg2
{[%clk 0:00:27]} 35... Qxg4+ {[%clk 0:01:14.6]} 36. Kh1 {[%clk 0:00:27.3]} 36...
Rf2 {[%clk 0:01:13.2]} 37. Rg1 {[%clk 0:00:17.3]} 37... Qf3+ {[%clk 0:01:11.6]}
0-1

[Event "*** SCC Grand Prix: Titled Tuesday Blitz"]
[Site "Chess.com"]
[Date "2020.07.14"]
[Round "2"]
[White "Unknown_IM"]
[Black "harkerchess"]
[Result "1-0"]
[WhiteElo "2382"]
[BlackElo "2087"]
[TimeControl "180+1"]
[EndTime "10:16:49 PDT"]
[Termination "Unknown_IM won by resignation"]

1. e4 {[%clk 0:03:00.9]} 1... e5 {[%clk 0:02:54]} 2. Nf3 {[%clk 0:03:00.7]} 2...
Nc6 {[%clk 0:02:54]} 3. Bb5 {[%clk 0:03:01.1]} 3... a6 {[%clk 0:02:53.9]} 4. Ba4
{[%clk 0:02:59.6]} 4... Nf6 {[%clk 0:02:52.6]} 5. d3 {[%clk 0:03:00]} 5... Be7
{[%clk 0:02:52.3]} 6. Bxc6 {[%clk 0:02:55.4]} 6... dxc6 {[%clk 0:02:51.2]} 7.
Nxe5 {[%clk 0:02:55.6]} 7... O-O {[%clk 0:02:45.3]} 8. O-O {[%clk 0:02:54.6]}
8... Be6 {[%clk 0:02:44.2]} 9. Nc3 {[%clk 0:02:53.6]} 9... Bd6 {[%clk
0:02:44.3]} 10. Nf3 {[%clk 0:02:53.1]} 10... Qd7 {[%clk 0:02:43.7]} 11. e5
{[%clk 0:02:49.8]} 11... Nd5 {[%clk 0:02:42.5]} 12. exd6 {[%clk 0:02:48.2]}
12... cxd6 {[%clk 0:02:41.5]} 13. Re1 {[%clk 0:02:46.1]} 13... Rfe8 {[%clk
0:02:40.4]} 14. Nxd5 {[%clk 0:02:24.5]} 14... Bxd5 {[%clk 0:02:35.4]} 15. Rxe8+
{[%clk 0:02:24.9]} 15... Rxe8 {[%clk 0:02:35.7]} 16. Bf4 {[%clk 0:02:25]} 16...
Qe6 {[%clk 0:02:26.2]} 17. Qd2 {[%clk 0:02:11.5]} 17... Qg6 {[%clk 0:02:21.3]}
18. Bg3 {[%clk 0:02:07.9]} 18... Qf6 {[%clk 0:02:18.8]} 19. Re1 {[%clk
0:02:06.6]} 19... Rxe1+ {[%clk 0:02:12.5]} 20. Qxe1 {[%clk 0:02:07.5]} 20... h6
{[%clk 0:02:13.1]} 21. Qc3 {[%clk 0:01:58]} 21... Qf5 {[%clk 0:02:01.9]} 22. d4
{[%clk 0:01:47.5]} 22... Qe6 {[%clk 0:01:44.6]} 23. Qe3 {[%clk 0:01:44.7]} 23...
Qg6 {[%clk 0:01:28.8]} 24. Qe8+ {[%clk 0:00:57.1]} 24... Kh7 {[%clk 0:01:27.2]}
25. Qe2 {[%clk 0:00:58]} 25... Bxa2 {[%clk 0:01:19.8]} 26. Nh4 {[%clk 0:00:56]}
26... Qg5 {[%clk 0:01:16.8]} 27. f4 {[%clk 0:00:48.9]} 27... Qd5 {[%clk
0:01:02.9]} 28. Qd3+ {[%clk 0:00:46.2]} 28... g6 {[%clk 0:01:02.3]} 29. f5
{[%clk 0:00:43]} 29... g5 {[%clk 0:00:50.2]} 30. f6+ {[%clk 0:00:42.1]} 30...
Kg8 {[%clk 0:00:50]} 31. Nf5 {[%clk 0:00:41.5]} 31... Kf8 {[%clk 0:00:44.9]} 32.
Bxd6+ {[%clk 0:00:39.1]} 32... Ke8 {[%clk 0:00:44.2]} 33. Qe3+ {[%clk
0:00:39.3]} 33... Qe6 {[%clk 0:00:41.2]} 34. Ng7+ {[%clk 0:00:39.2]} 1-0

[Event "*** SCC Grand Prix: Titled Tuesday Blitz"]
[Site "Chess.com"]
[Date "2020.07.14"]
[Round "2"]
[White "KonstantinB_1983"]
[Black "Quiet_Desperation"]
[Result "1-0"]
[WhiteElo "2437"]
[BlackElo "2220"]
[TimeControl "180+1"]
[EndTime "10:16:50 PDT"]
[Termination "KonstantinB_1983 won by resignation"]

1. d4 {[%clk 0:03:00.9]} 1... d5 {[%clk 0:02:59.5]} 2. c4 {[%clk 0:02:59.9]}
2... c6 {[%clk 0:02:59.8]} 3. Nc3 {[%clk 0:02:57.4]} 3... Nf6 {[%clk 0:03:00.2]}
4. e3 {[%clk 0:02:57.2]} 4... Bf5 {[%clk 0:02:40.6]} 5. cxd5 {[%clk 0:02:55.5]}
5... cxd5 {[%clk 0:02:37.4]} 6. Qb3 {[%clk 0:02:54.9]} 6... Qc7 {[%clk
0:02:36.9]} 7. Nxd5 {[%clk 0:02:52.1]} 7... Nxd5 {[%clk 0:01:43.2]} 8. Qxd5
{[%clk 0:02:49.9]} 8... e6 {[%clk 0:01:43.2]} 9. Bb5+ {[%clk 0:02:39.6]} 9...
Nc6 {[%clk 0:01:42.9]} 10. Bxc6+ {[%clk 0:02:12.8]} 10... bxc6 {[%clk
0:01:42.3]} 11. Qc4 {[%clk 0:02:12.1]} 11... Rb8 {[%clk 0:01:39.5]} 12. Ne2
{[%clk 0:01:55.8]} 12... Bb4+ {[%clk 0:01:38.5]} 13. Nc3 {[%clk 0:01:55]} 13...
O-O {[%clk 0:01:26]} 14. O-O {[%clk 0:01:53.5]} 14... Rfc8 {[%clk 0:01:23.1]}
15. e4 {[%clk 0:01:44.8]} 15... Bg6 {[%clk 0:01:22]} 16. f3 {[%clk 0:01:26.5]}
16... c5 {[%clk 0:01:18.7]} 17. d5 {[%clk 0:01:25]} 17... Bxc3 {[%clk
0:01:14.8]} 18. Qxc3 {[%clk 0:01:21]} 18... exd5 {[%clk 0:01:13]} 19. exd5
{[%clk 0:01:20]} 19... Qd6 {[%clk 0:01:10.7]} 20. Rd1 {[%clk 0:01:15.7]} 20...
c4 {[%clk 0:01:11.1]} 21. Be3 {[%clk 0:01:13.3]} 21... Bd3 {[%clk 0:01:10.7]}
22. Bxa7 {[%clk 0:01:07.1]} 22... Ra8 {[%clk 0:01:08]} 23. Bf2 {[%clk
0:01:05.6]} 23... Qxd5 {[%clk 0:01:08]} 24. b4 {[%clk 0:01:03.6]} 24... Qb5
{[%clk 0:01:01.8]} 25. a3 {[%clk 0:00:59.3]} 25... Qa4 {[%clk 0:00:58]} 26. Bd4
{[%clk 0:00:54.7]} 26... f6 {[%clk 0:00:58]} 27. Re1 {[%clk 0:00:52.9]} 27...
Qb3 {[%clk 0:00:53.1]} 28. h4 {[%clk 0:00:50]} 28... h5 {[%clk 0:00:50.9]} 29.
Bxf6 {[%clk 0:00:40.4]} 29... gxf6 {[%clk 0:00:49.6]} 30. Qxf6 {[%clk
0:00:39.4]} 30... c3 {[%clk 0:00:37.8]} 31. Re7 {[%clk 0:00:33.7]} 1-0

[Event "*** SCC Grand Prix: Titled Tuesday Blitz"]
[Site "Chess.com"]
[Date "2020.07.14"]
[Round "2"]
[White "WashUntilHoles"]
[Black "White_Ghost"]
[Result "0-1"]
[WhiteElo "2699"]
[BlackElo "2489"]
[TimeControl "180+1"]
[EndTime "10:16:52 PDT"]
[Termination "White_Ghost won on time"]

1. e4 {[%clk 0:03:00.2]} 1... e5 {[%clk 0:02:57.2]} 2. Nf3 {[%clk 0:03:00]} 2...
Nc6 {[%clk 0:02:55]} 3. d4 {[%clk 0:03:00.5]} 3... exd4 {[%clk 0:02:55]} 4. Nxd4
{[%clk 0:03:01.4]} 4... Nf6 {[%clk 0:02:55]} 5. Nxc6 {[%clk 0:02:59.2]} 5...
bxc6 {[%clk 0:02:55.9]} 6. e5 {[%clk 0:02:59.3]} 6... Qe7 {[%clk 0:02:56.4]} 7.
Qe2 {[%clk 0:02:59.3]} 7... Nd5 {[%clk 0:02:57]} 8. c4 {[%clk 0:02:58.6]} 8...
Ba6 {[%clk 0:02:57.6]} 9. b3 {[%clk 0:02:58.6]} 9... Qh4 {[%clk 0:02:57.8]} 10.
a3 {[%clk 0:02:53.3]} 10... Bc5 {[%clk 0:02:57.2]} 11. g3 {[%clk 0:02:48.4]}
11... Bxf2+ {[%clk 0:02:48.8]} 12. Qxf2 {[%clk 0:02:45]} 12... Qe4+ {[%clk
0:02:48.9]} 13. Kd1 {[%clk 0:02:40.2]} 13... Qxh1 {[%clk 0:02:49.8]} 14. Nd2
{[%clk 0:02:36.4]} 14... Nc3+ {[%clk 0:02:43.8]} 15. Kc2 {[%clk 0:02:36.4]}
15... Ne4 {[%clk 0:02:43.9]} 16. Nxe4 {[%clk 0:02:34.6]} 16... Qxe4+ {[%clk
0:02:44.8]} 17. Bd3 {[%clk 0:02:35.2]} 17... Qg4 {[%clk 0:02:41.7]} 18. Bf5
{[%clk 0:02:13.2]} 18... Qh5 {[%clk 0:02:40.6]} 19. h4 {[%clk 0:02:03.7]} 19...
f6 {[%clk 0:02:21]} 20. exf6 {[%clk 0:01:52.7]} 20... gxf6 {[%clk 0:02:21.5]}
21. Bb2 {[%clk 0:01:51.5]} 21... O-O-O {[%clk 0:01:55.5]} 22. g4 {[%clk
0:01:05.9]} 22... Qf7 {[%clk 0:01:53.4]} 23. Qxa7 {[%clk 0:01:05.2]} 23... Bb7
{[%clk 0:01:46.4]} 24. a4 {[%clk 0:00:50.2]} 24... Rde8 {[%clk 0:01:40.6]} 25.
a5 {[%clk 0:00:50.1]} 25... Re2+ {[%clk 0:01:39.4]} 26. Kb1 {[%clk 0:00:50.6]}
26... Re1+ {[%clk 0:01:37.1]} 27. Ka2 {[%clk 0:00:50.4]} 27... Rxa1+ {[%clk
0:01:37]} 28. Kxa1 {[%clk 0:00:50.7]} 28... Qe7 {[%clk 0:01:30.7]} 29. Ka2
{[%clk 0:00:28]} 29... Qb4 {[%clk 0:01:24.8]} 30. Ba3 {[%clk 0:00:17.5]} 30...
Qd2+ {[%clk 0:01:22.4]} 31. Bb2 {[%clk 0:00:18.2]} 31... Re8 {[%clk 0:01:19.4]}
32. Qd4 {[%clk 0:00:15.1]} 32... Qxa5+ {[%clk 0:01:12.5]} 0-1

[Event "*** SCC Grand Prix: Titled Tuesday Blitz"]
[Site "Chess.com"]
[Date "2020.07.14"]
[Round "2"]
[White "chito89"]
[Black "Kotofeyca"]
[Result "1-0"]
[WhiteElo "2800"]
[BlackElo "2319"]
[TimeControl "180+1"]
[EndTime "10:16:53 PDT"]
[Termination "chito89 won on time"]

1. e4 {[%clk 0:03:00.9]} 1... c5 {[%clk 0:02:59.5]} 2. Nf3 {[%clk 0:03:01]} 2...
d6 {[%clk 0:02:59.9]} 3. c3 {[%clk 0:02:58.2]} 3... Nf6 {[%clk 0:02:58.5]} 4. h3
{[%clk 0:02:58.2]} 4... Nc6 {[%clk 0:02:55.8]} 5. Bd3 {[%clk 0:02:57.9]} 5... e6
{[%clk 0:02:40.8]} 6. O-O {[%clk 0:02:52.9]} 6... Be7 {[%clk 0:02:40.5]} 7. Bc2
{[%clk 0:02:53]} 7... O-O {[%clk 0:02:40.1]} 8. d4 {[%clk 0:02:53.5]} 8... cxd4
{[%clk 0:02:39.9]} 9. cxd4 {[%clk 0:02:54.4]} 9... b6 {[%clk 0:02:38]} 10. Nc3
{[%clk 0:02:51.5]} 10... Ba6 {[%clk 0:02:37.7]} 11. Re1 {[%clk 0:02:50.4]} 11...
Nb4 {[%clk 0:02:34.3]} 12. Bb1 {[%clk 0:02:49.6]} 12... Rc8 {[%clk 0:02:34]} 13.
Qa4 {[%clk 0:02:21.7]} 13... d5 {[%clk 0:00:44.2]} 14. e5 {[%clk 0:02:14.3]}
14... Ne4 {[%clk 0:00:42.8]} 15. Nxe4 {[%clk 0:02:08.9]} 15... dxe4 {[%clk
0:00:19.5]} 16. Bxe4 {[%clk 0:02:09.8]} 16... Qe8 {[%clk 0:00:15.9]} 17. Qd1
{[%clk 0:02:03.5]} 17... Nd5 {[%clk 0:00:14.6]} 18. Bxd5 {[%clk 0:01:46.9]}
18... exd5 {[%clk 0:00:13.5]} 19. Bg5 {[%clk 0:01:47.8]} 19... Bxg5 {[%clk
0:00:12.7]} 20. Nxg5 {[%clk 0:01:47.4]} 20... Qe7 {[%clk 0:00:13.3]} 21. f4
{[%clk 0:01:39.9]} 21... Rc7 {[%clk 0:00:10.6]} 22. Qg4 {[%clk 0:01:35.3]} 22...
h6 {[%clk 0:00:09.7]} 23. Nf3 {[%clk 0:01:33.8]} 23... Rfc8 {[%clk 0:00:09.9]}
24. f5 {[%clk 0:01:33.3]} 24... Rc2 {[%clk 0:00:08]} 25. f6 {[%clk 0:01:30.9]}
25... Qf8 {[%clk 0:00:08.1]} 26. e6 {[%clk 0:01:26.2]} 26... fxe6 {[%clk
0:00:06.6]} 27. Rxe6 {[%clk 0:01:26.5]} 27... Be2 {[%clk 0:00:04.5]} 28. Re1
{[%clk 0:01:21.6]} 28... Bxf3 {[%clk 0:00:03.9]} 29. Qxf3 {[%clk 0:01:22.5]}
29... gxf6 {[%clk 0:00:02.6]} 30. Re7 {[%clk 0:01:12.2]} 30... Qg7 {[%clk
0:00:03.5]} 31. Qxd5+ {[%clk 0:01:07.8]} 31... Kh8 {[%clk 0:00:03.1]} 32. Rxg7
{[%clk 0:01:08.2]} 1-0

[Event "*** SCC Grand Prix: Titled Tuesday Blitz"]
[Site "Chess.com"]
[Date "2020.07.14"]
[Round "2"]
[White "Siemba"]
[Black "dosto07"]
[Result "0-1"]
[WhiteElo "2410"]
[BlackElo "2212"]
[TimeControl "180+1"]
[EndTime "10:16:53 PDT"]
[Termination "dosto07 won by checkmate"]

1. e4 {[%clk 0:03:00.9]} 1... e5 {[%clk 0:02:59.4]} 2. f4 {[%clk 0:02:57.7]}
2... d5 {[%clk 0:02:58.1]} 3. Nf3 {[%clk 0:02:51]} 3... exf4 {[%clk 0:02:55.8]}
4. exd5 {[%clk 0:02:50.3]} 4... Bd6 {[%clk 0:02:56.3]} 5. d4 {[%clk 0:02:33.1]}
5... Ne7 {[%clk 0:02:54]} 6. c4 {[%clk 0:02:32.6]} 6... Bb4+ {[%clk 0:02:45.9]}
7. Nc3 {[%clk 0:02:31.9]} 7... Ng6 {[%clk 0:02:45.3]} 8. Bd3 {[%clk 0:02:32.8]}
8... O-O {[%clk 0:02:42.7]} 9. O-O {[%clk 0:02:33.3]} 9... Bg4 {[%clk 0:02:30]}
10. a3 {[%clk 0:02:21.1]} 10... Be7 {[%clk 0:02:17.4]} 11. Qe1 {[%clk
0:02:05.2]} 11... c6 {[%clk 0:02:13.2]} 12. dxc6 {[%clk 0:01:53.6]} 12... Nxc6
{[%clk 0:02:12.6]} 13. d5 {[%clk 0:01:52.6]} 13... Bc5+ {[%clk 0:02:09.5]} 14.
Kh1 {[%clk 0:01:53]} 14... Re8 {[%clk 0:02:07.5]} 15. Qd2 {[%clk 0:01:25.5]}
15... Bxf3 {[%clk 0:01:50.1]} 16. gxf3 {[%clk 0:00:54.4]} 16... Nd4 {[%clk
0:01:48.2]} 17. b4 {[%clk 0:00:50.3]} 17... Nb3 {[%clk 0:01:45.5]} 18. Qb2
{[%clk 0:00:40.2]} 18... Nxa1 {[%clk 0:01:43.9]} 19. bxc5 {[%clk 0:00:40.4]}
19... Qh4 {[%clk 0:01:29.6]} 20. Qxa1 {[%clk 0:00:14.5]} 20... Re1 {[%clk
0:01:24.7]} 21. Qb2 {[%clk 0:00:13]} 21... Rae8 {[%clk 0:01:20.1]} 22. Bd2
{[%clk 0:00:09.9]} 22... Rxf1+ {[%clk 0:01:16.4]} 23. Bxf1 {[%clk 0:00:10.8]}
23... Qf2 {[%clk 0:01:13.3]} 24. Qc1 {[%clk 0:00:06.6]} 24... Nh4 {[%clk
0:01:10.9]} 25. Bxf4 {[%clk 0:00:03.6]} 25... Nxf3 {[%clk 0:01:01.6]} 26. Bg2
{[%clk 0:00:02]} 26... Re1+ {[%clk 0:01:00]} 27. Qxe1 {[%clk 0:00:02.7]} 27...
Qxe1+ {[%clk 0:00:59.7]} 28. Bf1 {[%clk 0:00:03.6]} 28... Qxf1# {[%clk
0:00:59.4]} 0-1

[Event "*** SCC Grand Prix: Titled Tuesday Blitz"]
[Site "Chess.com"]
[Date "2020.07.14"]
[Round "2"]
[White "Izoria123"]
[Black "HanSchut"]
[Result "1-0"]
[WhiteElo "2887"]
[BlackElo "2336"]
[TimeControl "180+1"]
[EndTime "10:16:54 PDT"]
[Termination "Izoria123 won on time"]

1. Nf3 {[%clk 0:03:00.9]} 1... c5 {[%clk 0:02:59]} 2. b3 {[%clk 0:02:54.9]} 2...
Nc6 {[%clk 0:02:59.2]} 3. Bb2 {[%clk 0:02:54.6]} 3... e5 {[%clk 0:02:57.5]} 4.
Nxe5 {[%clk 0:02:52.9]} 4... Nxe5 {[%clk 0:02:46.3]} 5. Bxe5 {[%clk 0:02:53.8]}
5... d5 {[%clk 0:02:46.9]} 6. e3 {[%clk 0:02:52.7]} 6... Nf6 {[%clk 0:02:40.4]}
7. Bb5+ {[%clk 0:02:51.3]} 7... Bd7 {[%clk 0:02:40.3]} 8. Bxf6 {[%clk 0:02:51]}
8... Qxf6 {[%clk 0:02:39]} 9. Bxd7+ {[%clk 0:02:51.5]} 9... Kxd7 {[%clk
0:02:39.6]} 10. Nc3 {[%clk 0:02:51.8]} 10... Kc6 {[%clk 0:02:32.3]} 11. O-O
{[%clk 0:02:49.8]} 11... Bd6 {[%clk 0:02:25.2]} 12. Qe2 {[%clk 0:02:42.6]} 12...
a6 {[%clk 0:02:23.3]} 13. e4 {[%clk 0:02:40.2]} 13... Rae8 {[%clk 0:02:03.1]}
14. exd5+ {[%clk 0:02:26.8]} 14... Kc7 {[%clk 0:02:02.5]} 15. Qd3 {[%clk
0:02:23.6]} 15... Re5 {[%clk 0:01:51.5]} 16. Ne4 {[%clk 0:02:06.7]} 16... Qh4
{[%clk 0:01:29.4]} 17. Nxd6 {[%clk 0:02:02.6]} 17... Kxd6 {[%clk 0:01:29.7]} 18.
c4 {[%clk 0:01:49.9]} 18... Rhe8 {[%clk 0:01:27]} 19. Qc3 {[%clk 0:01:24.3]}
19... b6 {[%clk 0:00:45.8]} 20. b4 {[%clk 0:01:19.5]} 20... Re4 {[%clk
0:00:40.7]} 21. bxc5+ {[%clk 0:01:17.6]} 21... bxc5 {[%clk 0:00:40.3]} 22. d3
{[%clk 0:01:12.9]} 22... Rg4 {[%clk 0:00:39.5]} 23. g3 {[%clk 0:01:12.2]} 23...
Re3 {[%clk 0:00:23.2]} 24. fxe3 {[%clk 0:00:54]} 24... Rxg3+ {[%clk 0:00:21.9]}
25. Kh1 {[%clk 0:00:54.5]} 25... Qh3 {[%clk 0:00:05.4]} 26. Qd2 {[%clk
0:00:51.7]} 1-0

[Event "*** SCC Grand Prix: Titled Tuesday Blitz"]
[Site "Chess.com"]
[Date "2020.07.14"]
[Round "2"]
[White "SavelievAlexei"]
[Black "AJSC02"]
[Result "1-0"]
[WhiteElo "2392"]
[BlackElo "2103"]
[TimeControl "180+1"]
[EndTime "10:16:54 PDT"]
[Termination "SavelievAlexei won by resignation"]

1. e4 {[%clk 0:02:54.8]} 1... c5 {[%clk 0:02:59.6]} 2. Nf3 {[%clk 0:02:54.7]}
2... Nc6 {[%clk 0:02:59.6]} 3. Nc3 {[%clk 0:02:54.7]} 3... e5 {[%clk 0:02:59]}
4. Bc4 {[%clk 0:02:54]} 4... Be7 {[%clk 0:02:58.6]} 5. d3 {[%clk 0:02:52]} 5...
d6 {[%clk 0:02:56.6]} 6. O-O {[%clk 0:02:51.5]} 6... Nf6 {[%clk 0:02:56.2]} 7.
Ng5 {[%clk 0:02:52]} 7... O-O {[%clk 0:02:55.5]} 8. f4 {[%clk 0:02:52.6]} 8...
h6 {[%clk 0:02:50.2]} 9. Nf3 {[%clk 0:02:51.5]} 9... Bg4 {[%clk 0:02:47.4]} 10.
h3 {[%clk 0:02:50.4]} 10... Bxf3 {[%clk 0:02:47]} 11. Qxf3 {[%clk 0:02:51.3]}
11... Nd4 {[%clk 0:02:46.8]} 12. Qf2 {[%clk 0:02:51.9]} 12... Rb8 {[%clk
0:02:39.5]} 13. a4 {[%clk 0:02:51.4]} 13... a6 {[%clk 0:02:29.1]} 14. Nd5 {[%clk
0:02:39.1]} 14... b5 {[%clk 0:02:25.9]} 15. Nxf6+ {[%clk 0:02:38.7]} 15... Bxf6
{[%clk 0:02:24.3]} 16. Bd5 {[%clk 0:02:38.8]} 16... exf4 {[%clk 0:01:51.2]} 17.
Bxf4 {[%clk 0:02:21.1]} 17... Bg5 {[%clk 0:01:39.4]} 18. Bg3 {[%clk 0:02:12.3]}
18... bxa4 {[%clk 0:01:26.8]} 19. c3 {[%clk 0:02:12.3]} 19... Ne6 {[%clk
0:00:56.7]} 20. Rxa4 {[%clk 0:02:08.1]} 20... Qb6 {[%clk 0:00:54.5]} 21. Ra2
{[%clk 0:01:27.8]} 21... c4 {[%clk 0:00:15.6]} 22. d4 {[%clk 0:01:26.1]} 22...
Rbc8 {[%clk 0:00:06.9]} 23. Qe2 {[%clk 0:01:19.4]} 23... Bf6 {[%clk 0:00:05.2]}
24. Bf2 {[%clk 0:01:14.5]} 24... Rfd8 {[%clk 0:00:03]} 25. Bxc4 {[%clk 0:01:13]}
25... Qc7 {[%clk 0:00:01.5]} 26. Bxe6 {[%clk 0:00:56.5]} 26... Rb8 {[%clk
0:00:02.4]} 27. Bd5 {[%clk 0:00:54.4]} 1-0

[Event "*** SCC Grand Prix: Titled Tuesday Blitz"]
[Site "Chess.com"]
[Date "2020.07.14"]
[Round "2"]
[White "ChessArchitect64"]
[Black "Ati1517"]
[Result "0-1"]
[WhiteElo "1866"]
[BlackElo "2343"]
[TimeControl "180+1"]
[EndTime "10:16:54 PDT"]
[Termination "Ati1517 won on time"]

1. d4 {[%clk 0:03:00.9]} 1... d5 {[%clk 0:02:59.1]} 2. Nf3 {[%clk 0:03:00]} 2...
Nf6 {[%clk 0:02:58.6]} 3. Bg5 {[%clk 0:02:59.6]} 3... Bf5 {[%clk 0:02:53.1]} 4.
e3 {[%clk 0:02:58.5]} 4... e6 {[%clk 0:02:53]} 5. Bd3 {[%clk 0:02:56.8]} 5...
Bxd3 {[%clk 0:02:50.7]} 6. Qxd3 {[%clk 0:02:55.3]} 6... Nbd7 {[%clk 0:02:50.7]}
7. O-O {[%clk 0:02:53.6]} 7... Be7 {[%clk 0:02:49.1]} 8. Nbd2 {[%clk 0:02:53.1]}
8... O-O {[%clk 0:02:48.5]} 9. b3 {[%clk 0:02:51.8]} 9... c5 {[%clk 0:02:47.7]}
10. c4 {[%clk 0:02:47.1]} 10... Rc8 {[%clk 0:02:47.5]} 11. Rac1 {[%clk
0:02:46.1]} 11... Qa5 {[%clk 0:02:39.7]} 12. Qb1 {[%clk 0:02:00.6]} 12... cxd4
{[%clk 0:02:30.3]} 13. exd4 {[%clk 0:01:51.7]} 13... h6 {[%clk 0:02:28.6]} 14.
Bf4 {[%clk 0:01:36.3]} 14... Bb4 {[%clk 0:02:20.2]} 15. Rcd1 {[%clk 0:01:12.5]}
15... Rc6 {[%clk 0:02:03.2]} 16. Ne5 {[%clk 0:00:41.7]} 16... Nxe5 {[%clk
0:01:41.2]} 17. dxe5 {[%clk 0:00:37.6]} 17... Nh5 {[%clk 0:01:39.5]} 18. Be3
{[%clk 0:00:31.9]} 18... d4 {[%clk 0:01:35.3]} 19. a3 {[%clk 0:00:23]} 19... Bc3
{[%clk 0:01:32.4]} 20. Bxd4 {[%clk 0:00:16]} 20... Bxd4 {[%clk 0:01:31.2]} 21.
b4 {[%clk 0:00:16.2]} 21... Qxa3 {[%clk 0:01:28.7]} 22. b5 {[%clk 0:00:14.8]}
22... Rcc8 {[%clk 0:01:26.2]} 23. Qe4 {[%clk 0:00:08.5]} 23... Bb6 {[%clk
0:01:20.3]} 24. g4 {[%clk 0:00:07.3]} 24... f5 {[%clk 0:01:07.4]} 25. exf6
{[%clk 0:00:04.5]} 25... Nxf6 {[%clk 0:01:05.6]} 26. Qxe6+ {[%clk 0:00:04.6]}
26... Kh8 {[%clk 0:01:05.8]} 27. Ne4 {[%clk 0:00:01.7]} 27... Nxe4 {[%clk
0:01:01.1]} 0-1

[Event "*** SCC Grand Prix: Titled Tuesday Blitz"]
[Site "Chess.com"]
[Date "2020.07.14"]
[Round "2"]
[White "tornikesanikidze"]
[Black "Antipov_Mikhail_Al"]
[Result "0-1"]
[WhiteElo "2527"]
[BlackElo "2859"]
[TimeControl "180+1"]
[EndTime "10:16:56 PDT"]
[Termination "Antipov_Mikhail_Al won by checkmate"]

1. d4 {[%clk 0:03:00.9]} 1... Nf6 {[%clk 0:02:59.9]} 2. c4 {[%clk 0:03:00.5]}
2... g6 {[%clk 0:02:59.7]} 3. f3 {[%clk 0:02:59.6]} 3... e6 {[%clk 0:02:59.4]}
4. e4 {[%clk 0:02:59]} 4... d5 {[%clk 0:02:59.9]} 5. cxd5 {[%clk 0:02:57.8]}
5... exd5 {[%clk 0:03:00.8]} 6. Nc3 {[%clk 0:02:58]} 6... c6 {[%clk 0:03:01.2]}
7. e5 {[%clk 0:02:54.8]} 7... Nh5 {[%clk 0:03:00.7]} 8. Be3 {[%clk 0:02:53.2]}
8... Ng7 {[%clk 0:02:48.7]} 9. Bd3 {[%clk 0:02:50.8]} 9... h5 {[%clk 0:02:48.1]}
10. Nge2 {[%clk 0:02:50.6]} 10... Be7 {[%clk 0:02:45.5]} 11. O-O {[%clk
0:02:49.9]} 11... Nd7 {[%clk 0:02:45.7]} 12. a3 {[%clk 0:02:21.7]} 12... a5
{[%clk 0:02:26.3]} 13. Qc2 {[%clk 0:02:12.1]} 13... Nf8 {[%clk 0:02:25.6]} 14.
Rab1 {[%clk 0:02:11.1]} 14... Bf5 {[%clk 0:02:25.1]} 15. b4 {[%clk 0:02:09]}
15... axb4 {[%clk 0:02:24]} 16. axb4 {[%clk 0:02:09.9]} 16... Nfe6 {[%clk
0:02:24.5]} 17. b5 {[%clk 0:02:08.6]} 17... c5 {[%clk 0:02:21.2]} 18. Bf2 {[%clk
0:02:06.5]} 18... c4 {[%clk 0:02:11.2]} 19. Bxf5 {[%clk 0:02:05.9]} 19... Nxf5
{[%clk 0:02:12.1]} 20. Rfd1 {[%clk 0:02:06]} 20... O-O {[%clk 0:02:01]} 21. g4
{[%clk 0:02:05.7]} 21... hxg4 {[%clk 0:02:00.6]} 22. fxg4 {[%clk 0:02:05.4]}
22... Nh4 {[%clk 0:01:51.9]} 23. Bxh4 {[%clk 0:01:51.7]} 23... Bxh4 {[%clk
0:01:52.8]} 24. Rf1 {[%clk 0:01:51.8]} 24... Kg7 {[%clk 0:01:47.2]} 25. b6
{[%clk 0:01:43.4]} 25... Qg5 {[%clk 0:01:32.3]} 26. h3 {[%clk 0:01:43.5]} 26...
Qe3+ {[%clk 0:01:25.6]} 27. Kg2 {[%clk 0:01:43.1]} 27... Nxd4 {[%clk 0:01:24.7]}
28. Nxd4 {[%clk 0:01:39.6]} 28... Qg3+ {[%clk 0:01:10.6]} 29. Kh1 {[%clk
0:01:38.7]} 29... Qxh3+ {[%clk 0:01:11.5]} 30. Qh2 {[%clk 0:01:16.8]} 30... Qxc3
{[%clk 0:01:10]} 31. Qf4 {[%clk 0:00:33.3]} 31... Qh3+ {[%clk 0:00:38.9]} 32.
Kg1 {[%clk 0:00:33.1]} 32... Ra2 {[%clk 0:00:36.4]} 33. Qf3 {[%clk 0:00:33.3]}
33... Qh2# {[%clk 0:00:36.1]} 0-1